bitfinex-derivatives/quotes_SOLF0:USTF0_20250319
["timestamp","ask_amount","ask_price","bid_price","bid_amount"]
[1742406176965,7.72958564,130.22,130.2,0.0564676]
[1742406178068,7.6789,130.21,130.2,0.0564676]
[1742406178565,0.05118564,130.22,130.2,0.0564676]
[1742406180867,0.05118564,130.22,130.2,0.0564676]
[1742406181067,7.72988564,130.22,130.2,0.0564676]
[1742406181265,0.05118564,130.22,130.2,0.0564676]
[1742406181869,7.6789,130.21,130.2,0.0564676]
[1742406182070,3.4576,130.21,130.16,42.2614]
[1742406182668,7.6796,130.2,130.16,42.2614]
[1742406183070,0.04864789,130.19,130.16,42.2614]
[1742406183276,0.04864789,130.19,130.17,0.0505017]
[1742406183475,0.04864789,130.19,130.17,7.7315017]
[1742406183672,0.04864789,130.19,130.17,0.0505017]
[1742406184178,0.04864789,130.19,130.18,7.6807]
[1742406190177,0.04864789,130.19,130.17,0.0505017]
[1742406190578,22.33984829,130.19,130.08,1.33679055]
[1742406190770,11.2147,130.18,130.1,34.12]
[1742406191280,18.8957,130.18,130.14,7.6826]
[1742406191479,11.2147,130.18,130.14,7.6826]
[1742406191675,0.05546316,130.17,130.15,0.05127713]
[1742406192279,0.05546316,130.17,130.15,7.73337713]
[1742406192680,0.05546316,130.17,130.15,0.05127713]
[1742406192873,0.05546316,130.17,130.16,41.7019]
[1742406193069,0.05546316,130.17,130.16,34.02]
[1742406193274,0.05546316,130.17,130.15,0.05127713]
[1742406193983,0.05546316,130.17,130.16,7.6819]
[1742406197583,6.316e-05,130.17,130.16,7.6819]
[1742406198176,6.316e-05,130.17,130.16,43.37085312]
[1742406198373,6.316e-05,130.17,130.16,58.76435312]
[1742406199785,264.86,130.23,130.22,7.6783]
[1742406199986,264.86,130.23,130.21,33.76]
[1742406200285,264.86,130.23,130.16,3.8957]
[1742406200480,264.86,130.23,130.17,33.74]
[1742406200680,264.86,130.23,130.18,33.74]
[1742406200881,0.05529049,130.21,130.19,0.05577054]
[1742406201077,7.6798,130.2,130.16,33.72]
[1742406201280,0.05529049,130.21,130.16,33.72]
[1742406201479,7.68,130.2,130.16,33.72]
[1742406201682,35.74424361,130.21,130.16,33.72]
[1742406201877,35.68895312,130.19,130.11,3.9443]
[1742406202082,35.68895312,130.19,130.12,33.68]
[1742406202083,7.6816,130.17,130.12,33.68]
[1742406202283,0.04864164,130.16,130.14,0.04926877]
[1742406202484,0.04864164,130.16,130.13,33.68]
[1742406202785,0.04864164,130.16,130.14,0.05468179]
[1742406205088,0.04864164,130.16,130.15,7.6825]
[1742406205289,0.04864164,130.16,130.14,0.05468179]
[1742406205591,0.04864164,130.16,130.14,33.57468179]
[1742406206594,7.73064164,130.16,130.14,33.57468179]
[1742406206992,0.04864164,130.16,130.14,33.57468179]
[1742406207192,7.6825,130.15,130.14,33.57468179]
[1742406207388,0.04864164,130.16,130.11,33.46]
[1742406207588,4.1801,130.15,130.11,33.46]
[1742406207789,7.6837,130.13,130.11,33.46]
[1742406208186,7.6843,130.12,130.09,7.6858]
[1742406208488,37.6001,130.15,130.03,300.62895312]
[1742406208693,7.6851,130.11,130.09,0.04772709]
[1742406208891,0.05446263,130.12,130.09,0.04772709]
[1742406210392,0.05446263,130.12,130.03,1.33745844]
[1742406210591,33.38,130.12,130.01,35.68895312]
[1742406210796,33.38,130.12,130.02,33.38]
[1742406210998,264.98,130.11,130.02,33.38]
[1742406211294,264.98,130.11,130.0,13.71476979]
[1742406211500,7.6873,130.07,130.03,7.6892]
[1742406211791,0.04912345,130.07,129.98,359.0]
[1742406211992,69.08895312,130.09,130.02,7.6899]
[1742406212294,35.74313471,130.04,129.95,85.16787753]
[1742406212496,35.68895312,129.99,129.94,125.70467527]
[1742406212795,37.8523,129.98,129.94,119.24097527]
[1742406212990,0.05629109,129.98,129.94,119.24097527]
[1742406213195,52.40076765,129.98,129.95,1.33861599]
[1742406213389,8.2268,129.97,129.92,262.95539254]
[1742406213994,70.24524421,129.98,129.92,262.95539254]
[1742406214896,35.68895312,129.95,129.92,262.95539254]
[1742406215103,34.6,129.94,129.92,262.95539254]
[1742406215292,299.76,129.94,129.92,259.73109254]
[1742406215493,307.46,129.94,129.92,254.76679254]
[1742406215804,307.46,129.94,129.85,34.64]
[1742406215996,299.76,129.94,129.86,7.6992]
[1742406216200,0.05447273,129.91,129.85,34.64]
[1742406217790,0.05447273,129.91,129.86,35.68895312]
[1742406217996,34.58,129.98,129.86,35.68895312]
[1742406218197,41.66290886,129.91,129.87,0.05570706]
[1742406218396,154.03845258,129.93,129.89,35.68895312]
[1742406218702,22.68037919,129.93,129.92,43.38505312]
[1742406218900,22.68037919,129.93,129.83,1.33959504]
[1742406219093,22.68037919,129.93,129.91,0.05101117]
[1742406219502,22.72949793,129.93,129.91,0.05596183]
[1742406219802,22.72949793,129.93,129.92,7.6961]
[1742406220002,0.04911874,129.93,129.92,7.6961]
[1742406221400,0.04911874,129.93,129.91,42.91246183]
[1742406221601,0.04911874,129.93,129.91,35.21596183]
[1742406221801,0.04911874,129.93,129.92,7.6961]
[1742406222498,1.874e-05,129.93,129.92,7.6961]
[1742406224504,265.32,130.01,129.91,70.90491495]
[1742406224703,265.32,130.01,129.94,35.68895312]
[1742406224902,265.32,130.01,129.95,34.88]
[1742406225602,265.32,130.01,129.99,7.6917]
[1742406225903,265.37056518,130.01,129.98,34.82]
[1742406226202,0.05056518,130.01,129.98,34.82]
[1742406227003,0.05056518,130.01,130.0,7.6913]
[1742406227405,0.05056518,130.01,130.0,7.42358196]
[1742406227801,0.05056518,130.01,129.98,34.82]
[1742406229005,0.05056518,130.01,130.0,7.6913]
[1742406230201,0.05056518,130.01,129.99,7.6916]
[1742406230602,0.05056518,130.01,129.98,34.82]
[1742406230804,0.05056518,130.01,130.0,7.6913]
[1742406231305,0.05056518,130.01,129.98,34.82]
[1742406231902,0.05056518,130.01,130.0,7.6913]
[1742406232108,0.05056518,130.01,129.98,34.82]
[1742406233008,0.05056518,130.01,130.0,7.6913]
[1742406235612,0.05056518,130.01,129.97,34.37432607]
[1742406236105,0.05056518,130.01,129.98,7.6921]
[1742406236702,0.05056518,130.01,129.97,0.05432607]
[1742406236900,0.05056518,130.01,129.97,34.29432607]
[1742406237612,0.05056518,130.01,129.97,0.05432607]
[1742406238113,0.05056518,130.01,129.98,7.6922]
[1742406238312,0.05056518,130.01,129.97,0.05432607]
[1742406239612,0.05056518,130.01,130.0,7.6913]
[1742406240011,0.05056518,130.01,129.98,34.1]
[1742406240207,0.05056518,130.01,129.99,7.6915]
[1742406240414,0.05056518,130.01,129.97,0.05432607]
[1742406240615,0.05056518,130.01,129.99,7.6919]
[1742406240806,0.05056518,130.01,129.97,34.11432607]
[1742406241314,0.05056518,130.01,129.98,7.6922]
[1742406241506,0.05056518,130.01,129.97,34.11432607]
[1742406241704,0.05056518,130.01,129.99,7.6916]
[1742406241916,0.05056518,130.01,129.97,34.11432607]
[1742406243010,0.05056518,130.01,129.97,41.80712607]
[1742406243215,0.05056518,130.01,129.97,34.11432607]
[1742406243906,0.05056518,130.01,129.97,0.05432607]
[1742406244314,7.6948,129.95,129.9,7.697]
[1742406244513,33.9,129.97,129.88,33.9]
[1742406244718,38.0856,129.97,129.88,33.9]
[1742406245117,38.0856,129.97,129.9,9.59295736]
[1742406245118,4.1856,129.97,129.9,9.59295736]
[1742406245421,0.05672634,129.95,129.92,0.0507545]
[1742406246216,0.05672634,129.95,129.92,7.7467545]
[1742406246420,0.05672634,129.95,129.92,0.0507545]
[1742406246619,0.05672634,129.95,129.94,7.6949]
[1742406246810,0.05672634,129.95,129.94,33.82]
[1742406247617,0.05672634,129.95,129.92,33.8307545]
[1742406250212,0.05672634,129.95,129.94,7.6949]
[1742406251818,2.634e-05,129.95,129.94,7.6949]
[1742406252920,2.634e-05,129.95,129.92,33.8307545]
[1742406254123,2.634e-05,129.95,129.94,7.6949]
[1742406255230,2.634e-05,129.95,129.92,33.8307545]
[1742406255618,7.69472634,129.95,129.92,33.8307545]
[1742406255926,2.634e-05,129.95,129.92,33.8307545]
[1742406256127,7.69482634,129.95,129.92,33.8307545]
[1742406256725,7.69482634,129.95,129.92,0.0507545]
[1742406257022,2.634e-05,129.95,129.92,0.0507545]
[1742406257222,2.634e-05,129.95,129.92,33.8107545]
[1742406257417,2.634e-05,129.95,129.92,41.5464545]
[1742406257823,2.634e-05,129.95,129.92,33.8507545]
[1742406258324,30.692738,129.93,129.85,64.7653681]
[1742406258626,30.692738,129.9,129.87,7.6989]
[1742406258823,30.692738,129.9,129.85,64.7653681]
[1742406259529,3.9994,129.93,129.86,0.04904434]
[1742406259530,0.05259521,129.89,129.86,0.04904434]
[1742406259730,0.05259521,129.89,129.88,7.6984]
[1742406259930,0.05259521,129.89,129.86,0.04904434]
[1742406261030,0.05259521,129.89,129.86,7.74824434]
[1742406261233,0.05259521,129.89,129.86,0.04904434]
[1742406262332,0.05259521,129.89,129.86,7.74824434]
[1742406262532,30.74533321,129.89,129.78,666.32503816]
[1742406262728,35.2,129.9,129.79,35.08]
[1742406262929,35.2,129.9,129.8,30.692738]
[1742406263426,4.2702,129.9,129.87,7.6986]
[1742406263631,4.2702,129.9,129.85,35.08]
[1742406263828,0.05658072,129.9,129.85,35.08]
[1742406264035,0.05658072,129.9,129.89,7.6978]
[1742406265138,265.4,129.94,129.92,7.6959]
[1742406265337,8.2652,129.98,129.92,35.0]
[1742406265535,12.45,129.98,129.92,35.0]
[1742406265736,47.43,129.98,129.92,35.0]
[1742406266039,47.43,129.98,129.83,30.692738]
[1742406266040,30.692738,129.95,129.83,30.692738]
[1742406266235,308.235,129.94,129.87,7.6987]
[1742406266433,0.05513474,129.9,129.88,0.05459951]
[1742406267836,0.05513474,129.9,129.89,7.6978]
[1742406270240,0.05513474,129.9,129.88,0.05459951]
[1742406270744,0.05513474,129.9,129.89,7.6978]
[1742406272243,0.05513474,129.9,129.88,7.75269951]
[1742406272546,0.05513474,129.9,129.88,0.05459951]
[1742406273144,0.05513474,129.9,129.88,7.75269951]
[1742406273749,0.05513474,129.9,129.89,7.6978]
[1742406273944,0.05513474,129.9,129.88,0.05459951]
[1742406274250,0.05513474,129.9,129.88,7.75289951]
[1742406274458,0.05513474,129.9,129.88,0.05459951]
[1742406274948,7.6987,129.88,129.84,34.64]
[1742406275253,19.1908521,129.89,129.8,19.1908521]
[1742406275254,19.1908521,129.89,129.83,34.64]
[1742406275451,7.6991,129.87,129.83,42.3211]
[1742406275951,0.05315064,129.86,129.82,42.3216]
[1742406276151,0.05315064,129.86,129.82,34.62]
[1742406276542,7.75305064,129.86,129.82,42.3217]
[1742406276751,0.05315064,129.86,129.82,34.62]
[1742406278254,0.05315064,129.86,129.84,7.7003]
[1742406278453,0.05315064,129.86,129.85,34.54]
[1742406279151,0.05315064,129.86,129.82,34.5]
[1742406279352,19.1908521,129.87,129.78,19.1908521]
[1742406279548,0.05533245,129.85,129.78,19.1908521]
[1742406279750,19.24618455,129.85,129.75,19.1908521]
[1742406279955,19.24618455,129.85,129.76,35.94]
[1742406279956,7.7011,129.84,129.76,35.94]
[1742406280147,0.04980221,129.81,129.79,7.7035]
[1742406280349,0.04980221,129.81,129.79,35.96]
[1742406280750,0.04980221,129.81,129.8,35.98]
[1742406281254,0.04980221,129.81,129.76,7.7051]
[1742406281652,0.04980221,129.81,129.75,46.80125954]
[1742406282156,7.75260221,129.81,129.75,46.80125954]
[1742406282358,0.04980221,129.81,129.75,10.48125954]
[1742406282858,7.7035,129.8,129.75,10.48125954]
[1742406283062,0.04980221,129.81,129.75,10.48125954]
[1742406283360,7.7038,129.79,129.75,10.48125954]
[1742406283753,0.05877696,129.78,129.76,36.5]
[1742406283951,0.05877696,129.78,129.77,7.705]
[1742406286862,265.58,129.82,129.76,36.5]
[1742406287274,265.58,129.82,129.78,7.704]
[1742406287464,265.58,129.82,129.79,36.36]
[1742406287668,265.58,129.82,129.79,36.42]
[1742406287875,265.6327742,129.82,129.79,36.46893318]
[1742406288074,273.3350742,129.82,129.79,36.46893318]
[1742406288275,273.3350742,129.82,129.79,0.04893318]
[1742406288474,265.6327742,129.82,129.79,0.04893318]
[1742406289076,265.6327742,129.82,129.79,7.75253318]
[1742406289375,265.6327742,129.82,129.79,0.04893318]
[1742406290077,273.3348742,129.82,129.79,0.04893318]
[1742406291378,265.6327742,129.82,129.79,0.04893318]
[1742406292180,273.3348742,129.82,129.79,0.04893318]
[1742406292678,265.6327742,129.82,129.79,7.75263318]
[1742406293376,265.6327742,129.82,129.79,0.04893318]
[1742406293876,273.3349742,129.82,129.79,0.04893318]
[1742406295079,265.6327742,129.82,129.79,7.75263318]
[1742406296480,265.6327742,129.82,129.8,7.7029]
[1742406296877,265.6327742,129.82,129.8,35.82]
[1742406297374,0.0527742,129.82,129.81,7.7026]
[1742406297778,0.0527742,129.82,129.8,35.82]
[1742406297971,0.0527742,129.82,129.8,43.5231]
[1742406298882,0.0527742,129.82,129.8,7.7031]
[1742406299186,0.0527742,129.82,129.79,7.75243318]
[1742406299677,0.0527742,129.82,129.8,7.7031]
[1742406300070,0.0527742,129.82,129.79,0.04893318]
[1742406300782,7.7550742,129.82,129.79,7.75273318]
[1742406300982,7.7550742,129.82,129.79,0.04893318]
[1742406301283,7.7031,129.81,129.79,0.04893318]
[1742406301676,265.72,129.81,129.7,72.68653838]
[1742406301878,7.7041,129.79,129.76,7.7053]
[1742406302181,265.72,129.81,129.7,74.0273205]
[1742406302382,7.7041,129.79,129.76,7.7052]
[1742406302885,0.05209508,129.79,129.7,74.0273205]
[1742406303072,265.72,129.81,129.73,19.23444202]
[1742406303276,0.05348406,129.76,129.74,35.66]
[1742406303478,265.72,129.81,129.74,35.66]
[1742406303773,265.72,129.81,129.75,19.23444202]
[1742406304077,1.38e-05,129.79,129.78,7.7044]
[1742406304279,1.38e-05,129.79,129.78,43.3444]
[1742406304782,1.38e-05,129.79,129.73,19.23444202]
[1742406304982,1.38e-05,129.79,129.74,35.76]
[1742406305178,1.38e-05,129.79,129.75,43.4456]
[1742406305385,1.38e-05,129.79,129.75,35.79032565]
[1742406305878,1.38e-05,129.79,129.75,0.05032565]
[1742406306083,55.11444202,129.78,129.75,0.05032565]
[1742406306685,7.9957138,129.79,129.75,0.05032565]
[1742406306988,7.9957138,129.79,129.76,7.7053]
[1742406307186,7.9957138,129.79,129.75,0.05032565]
[1742406307687,7.9957138,129.79,129.76,7.7056]
[1742406307992,7.9957138,129.79,129.75,0.05032565]
[1742406309584,74.81946632,129.79,129.66,156.40417798]
[1742406309780,30.78375252,129.77,129.68,41.92503816]
[1742406310089,30.78375252,129.77,129.69,36.04]
[1742406310288,4.271,129.76,129.73,7.7073]
[1742406310492,4.271,129.76,129.69,36.04]
[1742406310684,4.32747357,129.76,129.73,0.028355]
[1742406311493,0.05647357,129.76,129.73,0.028355]
[1742406311889,0.05647357,129.76,129.75,7.7062]
[1742406312993,0.05647357,129.76,129.73,0.028355]
[1742406313587,0.05647357,129.76,129.75,7.7062]
[1742406313989,0.05647357,129.76,129.75,43.7462]
[1742406314590,0.0021475,129.76,129.75,43.7462]
[1742406315093,265.72,129.81,129.75,36.04]
[1742406315683,265.72,129.81,129.77,7.7049]
[1742406315889,265.72,129.81,129.75,36.04]
[1742406316292,0.05534847,129.79,129.77,0.05540763]
[1742406318491,0.05534847,129.79,129.78,7.7044]
[1742406319499,4.2284,129.85,129.77,67.11916015]
[1742406319801,4.2284,129.85,129.77,67.06375252]
[1742406319993,7.7011,129.84,129.79,7.7034]
[1742406320195,7.7011,129.84,129.77,67.06375252]
[1742406320491,4.2284,129.85,129.8,7.7031]
[1742406320692,0.05472125,129.82,129.8,7.7031]
[1742406320900,0.05472125,129.82,129.79,0.05389104]
[1742406321197,7.7036,129.8,129.75,7.7059]
[1742406321395,44.2493,129.81,129.75,7.7059]
[1742406321697,310.0293,129.81,129.74,36.18]
[1742406322093,310.0293,129.81,129.76,0.05319169]
[1742406322395,0.05447766,129.79,129.72,10.48125954]
[1742406322599,66.90375252,129.78,129.72,10.48125954]
[1742406322895,7.7063,129.75,129.72,10.48125954]
[1742406323103,66.90375252,129.78,129.72,10.48125954]
[1742406323290,74.60845252,129.78,129.74,7.7064]
[1742406323796,0.05213966,129.77,129.75,0.03309431]
[1742406323999,7.75713966,129.77,129.75,0.03309431]
[1742406324394,7.7056,129.76,129.75,0.03309431]
[1742406324699,0.05213966,129.77,129.75,0.03309431]
[1742406324895,7.7064,129.75,129.72,7.7076]
[1742406325200,7.7064,129.75,129.71,3.7875]
[1742406325402,4.0351,129.74,129.71,3.7875]
[1742406326004,4.0351,129.74,129.71,11.4958]
[1742406326005,11.7422,129.74,129.71,11.4958]
[1742406326200,4.09042263,129.74,129.71,3.7875]
[1742406326599,0.05532263,129.74,129.73,7.7073]
[1742406326798,0.05532263,129.74,129.71,3.7875]
[1742406328806,7.7076,129.73,129.71,3.7875]
[1742406329104,0.05532263,129.74,129.65,41.26501206]
[1742406329105,30.83907515,129.74,129.65,10.48125954]
[1742406329296,11.7601,129.72,129.68,7.71]
[1742406329604,0.05585792,129.71,129.66,36.4]
[1742406330001,0.05585792,129.71,129.65,36.42]
[1742406330202,4.04885792,129.71,129.65,36.42]
[1742406330607,4.04885792,129.71,129.63,132.14444864]
[1742406330908,3.993,129.71,129.65,30.78375252]
[1742406331107,0.05443234,129.68,129.65,30.78375252]
[1742406331307,4.2428,129.74,129.67,30.78375252]
[1742406332002,4.2428,129.74,129.7,7.7088]
[1742406332302,4.2428,129.74,129.69,36.76]
[1742406332505,4.2315378,129.73,129.71,0.05443234]
[1742406332702,8.304,129.73,129.66,36.92]
[1742406332999,8.304,129.73,129.64,3.9144]
[1742406333203,8.304,129.73,129.65,56.31925124]
[1742406333906,0.05751388,129.7,129.69,7.7094]
[1742406334301,0.05751388,129.7,129.68,44.71]
[1742406334902,0.05751388,129.7,129.69,7.7097]
[1742406335499,0.05751388,129.7,129.65,19.25925124]
[1742406335908,0.05751388,129.7,129.66,7.7111]
[1742406336099,19.25925124,129.72,129.63,56.43925124]
[1742406336405,7.7109,129.68,129.62,37.28]
[1742406336608,265.95740288,129.69,129.62,37.28]
[1742406336808,265.9,129.69,129.62,56.53925124]
[1742406337010,0.05179,129.67,129.66,7.7115]
[1742406337310,9e-05,129.67,129.66,64.23075124]
[1742406338612,9e-05,129.67,129.65,0.04983719]
[1742406338800,9e-05,129.67,129.66,37.44]
[1742406339003,9e-05,129.67,129.66,45.1515]
[1742406340709,9e-05,129.67,129.66,64.41075124]
[1742406343010,9e-05,129.67,129.66,45.1515]
[1742406343512,9e-05,129.67,129.66,37.44]
[1742406344112,9e-05,129.67,129.65,37.34983719]
[1742406344509,9e-05,129.67,129.65,0.04983719]
[1742406345115,7.7122,129.65,129.58,23.30915124]
[1742406345317,7.7122,129.65,129.59,37.48]
[1742406345612,3.9435,129.66,129.6,19.25925124]
[1742406345811,8.3553,129.67,129.62,19.25925124]
[1742406346015,8.3553,129.67,129.62,56.73925124]
[1742406346411,0.05433737,129.66,129.62,56.73925124]
[1742406346617,0.05433737,129.66,129.65,7.7118]
[1742406346914,0.05433737,129.66,129.65,45.1718]
[1742406348516,3.737e-05,129.66,129.65,45.1718]
[1742406350615,265.98,129.73,129.7,7.7091]
[1742406350813,265.98,129.73,129.68,37.5]
[1742406351014,265.98,129.73,129.71,7.7084]
[1742406351514,266.03464147,129.73,129.71,7.76078132]
[1742406352817,266.03464147,129.73,129.72,7.7079]
[1742406353616,0.05464147,129.73,129.72,7.7079]
[1742406354217,0.05464147,129.73,129.71,7.76068132]
[1742406356518,0.05464147,129.73,129.71,0.05238132]
[1742406357019,0.05464147,129.73,129.72,44.7879]
[1742406359019,0.05464147,129.73,129.72,37.08]
[1742406359218,0.05464147,129.73,129.71,0.05238132]
[1742406359622,0.05464147,129.73,129.72,7.7079]
[1742406360325,375.31647409,129.88,129.72,7.7]
[1742406360625,8.2597,129.83,129.74,30.8218623]
[1742406361421,8.2597,129.83,129.79,7.7036]
[1742406361630,0.05498374,129.8,129.79,7.7036]
[1742406361927,0.05498374,129.8,129.78,37.26]
[1742406362128,0.05498374,129.8,129.78,37.30874726]
[1742406362325,0.05498374,129.8,129.78,0.04874726]
[1742406362524,0.05498374,129.8,129.75,7.7058]
[1742406362724,35.06254604,129.8,129.74,37.18]
[1742406363026,35.06254604,129.8,129.75,7.7059]
[1742406363231,35.0075623,129.8,129.75,7.7059]
[1742406363418,7.7042,129.79,129.75,7.7059]
[1742406363623,0.0512818,129.79,129.76,0.04929331]
[1742406364030,7.7554818,129.79,129.72,37.22]
[1742406364329,0.0512818,129.79,129.77,7.7045]
[1742406364624,0.0512818,129.79,129.72,37.22]
[1742406364625,0.0512818,129.79,129.69,46.2407623]
[1742406364832,30.8218623,129.78,129.68,42.64027424]
[1742406365022,67.9218623,129.78,129.68,42.64027424]
[1742406365327,7.7076,129.73,129.69,7.7092]
[1742406365528,7.7076,129.73,129.68,42.64027424]
[1742406365728,7.708,129.72,129.68,42.64027424]
[1742406365929,3.9038,129.74,129.68,79.64027424]
[1742406366120,0.05598448,129.72,129.68,79.64027424]
[1742406366322,0.05598448,129.72,129.68,87.35027424]
[1742406366523,0.05598448,129.72,129.68,79.64027424]
[1742406366733,0.05598448,129.72,129.68,37.0]
[1742406367023,0.05598448,129.72,129.69,7.7096]
[1742406367230,0.05598448,129.72,129.68,37.0]
[1742406367431,0.05598448,129.72,129.68,44.7101]
[1742406367625,0.05598448,129.72,129.68,37.0]
[1742406368333,7.7085,129.71,129.68,37.0]
[1742406368534,0.05598448,129.72,129.68,37.0]
[1742406368833,7.7089,129.71,129.68,37.0]
[1742406369031,0.05598448,129.72,129.66,10.66006856]
[1742406369638,0.05598448,129.72,129.69,7.7094]
[1742406369938,0.05598448,129.72,129.7,36.7]
[1742406370138,0.05598448,129.72,129.7,44.4488]
[1742406370430,0.05598448,129.72,129.7,36.74]
[1742406370735,0.05598448,129.72,129.71,7.7085]
[1742406370936,0.05598448,129.72,129.7,36.74]
[1742406371633,0.05598448,129.72,129.71,7.7085]
[1742406372136,0.05598448,129.72,129.71,44.4685]
[1742406372327,0.05598448,129.72,129.71,36.76]
[1742406373236,7.76418448,129.72,129.66,30.8218623]
[1742406373426,0.05598448,129.72,129.68,36.72]
[1742406374038,8.2691,129.77,129.71,30.8218623]
[1742406374233,8.2691,129.77,129.72,36.66]
[1742406374437,8.2691,129.77,129.74,7.7064]
[1742406374638,8.2691,129.77,129.75,36.62]
[1742406375241,0.04964211,129.77,129.75,36.67246617]
[1742406375441,0.04964211,129.77,129.76,7.7056]
[1742406376132,0.04964211,129.77,129.75,44.37836617]
[1742406376638,0.04964211,129.77,129.75,36.67246617]
[1742406376838,0.04964211,129.77,129.76,7.7056]
[1742406378637,12.6508,129.83,129.8,7.7031]
[1742406379040,12.6508,129.83,129.79,36.4]
[1742406379240,12.6508,129.83,129.8,7.7031]
[1742406379540,12.6508,129.83,129.79,36.4]
[1742406379736,12.6508,129.83,129.8,7.7028]
[1742406379935,0.05027806,129.82,129.8,0.0591718]
[1742406380740,0.05027806,129.82,129.81,7.7026]
[1742406383148,0.05027806,129.82,129.8,0.0591718]
[1742406385038,0.05027806,129.82,129.81,7.7026]
[1742406385352,7.806e-05,129.82,129.81,7.7026]
[1742406385849,8.2954,129.89,129.85,7.6998]
[1742406386052,8.2954,129.89,129.85,35.98]
[1742406386449,265.8,129.9,129.85,35.98]
[1742406387050,0.05835979,129.89,129.86,0.05258287]
[1742406387449,30.88022209,129.89,129.83,43.5813]
[1742406387752,30.8218623,129.89,129.83,35.88]
[1742406388152,30.8218623,129.89,129.82,7.7017]
[1742406388543,0.05791508,129.87,129.81,43.5424]
[1742406388745,35.85791508,129.87,129.84,0.05910379]
[1742406388953,8.1138,129.86,129.84,0.05910379]
[1742406389444,3.8905,129.86,129.85,7.7002]
[1742406389642,3.8905,129.86,129.84,0.05910379]
[1742406389842,3.8905,129.86,129.79,35.72]
[1742406390047,3.8905,129.86,129.79,35.7]
[1742406390250,4.2233,129.85,129.79,35.7]
[1742406390948,0.05047439,129.83,129.81,0.05010998]
[1742406391655,0.05047439,129.83,129.82,7.702]
[1742406391955,0.05047439,129.83,129.81,0.05010998]
[1742406392654,7.702,129.82,129.79,7.7034]
[1742406392856,0.05047439,129.83,129.78,7.7041]
[1742406393156,35.65047439,129.83,129.78,7.7041]
[1742406393351,7.7023,129.82,129.78,7.7041]
[1742406393657,35.65047439,129.83,129.78,7.7041]
[1742406394156,7.7029,129.81,129.78,7.7041]
[1742406394355,35.65047439,129.83,129.79,7.7037]
[1742406394550,35.65047439,129.83,129.76,35.6]
[1742406394752,0.05737042,129.82,129.81,7.7023]
[1742406394957,0.05737042,129.82,129.81,43.1823]
[1742406396456,7.042e-05,129.82,129.81,43.1823]
[1742406396958,7.042e-05,129.82,129.81,74.0041623]
[1742406397262,3.9492,129.88,129.87,7.699]
[1742406399355,0.05598281,129.89,129.88,7.6984]
[1742406399750,0.05598281,129.89,129.87,35.2]
[1742406401061,8.1496,129.95,129.87,35.2]
[1742406401261,8.1496,129.95,129.88,30.8218623]
[1742406401561,8.1496,129.95,129.87,35.2]
[1742406402156,8.1496,129.95,129.87,42.8987]
[1742406402351,0.05335111,129.92,129.9,0.05261999]
[1742406402765,0.05335111,129.92,129.9,35.15261999]
[1742406404161,0.05335111,129.92,129.9,42.84941999]
[1742406404462,0.05335111,129.92,129.9,65.97448229]
[1742406404767,0.05335111,129.92,129.91,7.6967]
[1742406405057,8.1578,129.99,129.9,65.97448229]
[1742406405262,8.1578,129.99,129.9,65.9218623]
[1742406405657,15.85,129.99,129.92,7.6955]
[1742406405857,8.1578,129.99,129.93,34.92]
[1742406406266,0.05217795,129.97,129.95,0.04936691]
[1742406407463,0.05217795,129.97,129.96,34.8]
[1742406409372,0.05217795,129.97,129.95,0.04936691]
[1742406409766,7.6937,129.96,129.95,0.04936691]
[1742406409963,0.05217795,129.97,129.95,0.04936691]
[1742406410267,7.74557795,129.97,129.95,0.04936691]
[1742406410665,0.05217795,129.97,129.95,0.04936691]
[1742406411365,7.74557795,129.97,129.95,0.04936691]
[1742406411769,0.05217795,129.97,129.95,0.04936691]
[1742406414070,7.74557795,129.97,129.95,0.04936691]
[1742406414269,0.05217795,129.97,129.95,34.50936691]
[1742406415566,0.05217795,129.97,129.95,0.04936691]
[1742406415871,7.6937,129.96,129.95,0.04936691]
[1742406417465,0.05217795,129.97,129.88,30.8218623]
[1742406417670,65.2218623,129.98,129.89,34.4]
[1742406418065,30.8218623,129.94,129.85,34.42]
[1742406418270,8.2439,129.93,129.86,34.42]
[1742406418663,0.05324838,129.91,129.88,0.05331423]